Cogmind - Beta 16 @@@ ROGUE MODE // 2025.10.29 @ 14:48:35 Player: Robotson Result: Destroyed by G-34 Mercenary with Small Laser Performance ------------- Evolutions (1) 500 Regions Visited (3) 600 Robots Destroyed (30) 150 Value Destroyed (492) 492 Prototype IDs (0) 0 Alien Tech Used (0) 0 Bonus (33) 33 TOTAL SCORE: 1775 Bonus ------- Follower Combat Kills 33 Cogmind --------- Core Integrity 0/400 Matter 291/300 Energy 61/100 System Corruption 2% Temperature Cool (14) Movement Flying (37) Location -9/Materials Parts ------- > --- POWER (1) -------- (None) > --- PROPULSION (2) --- Flight Unit Flight Unit > --- UTILITY (3) ------ (None) > --- WEAPON (3) ------- Beam Rifle > --- INVENTORY (5) ---- Heat Sink Medium Matter Pod (100) Hacking Suite Tractor Beam Peak State ------------ > --- POWER ------------ Light Ion Engine > --- PROPULSION ------- Wheel Wheel > --- UTILITY ---------- Small Storage Unit Improved Terrain Scanner Seismic Detector > --- WEAPON ----------- Medium Laser Medium Laser Heavy Assault Rifle > --- INVENTORY -------- Ion Engine Wheel Heat Sink Medium Matter Pod Light Armor Plating Hacking Suite Tractor Beam Light Assault Rifle [Rating: 13] Favorites ----------- Power Light Ion Engine Engine Light Ion Engine Propulsion Wheel Leg Aluminum Leg Wheel Wheel Flight Unit Flight Unit Utility Small Storage Unit Device Seismic Detector Storage Small Storage Unit Protection Light Armor Plating Weapon Medium Laser Energy Gun Medium Laser Ballistic Gun Light Assault Rifle Special Weapon Mining Laser Slashing Weapon Mining Claw Build | -11 -10 -10 -9 ------- Run | Yrd Mat Min Mat Slots Evolved 2 | . . . 2 Power . | . . . . Propulsion . | . . . . Utility 1 | . . . 1 Weapon 1 | . . . 1 Parts Attached 27 | 7 5 8 7 Power 4 | 1 . 2 1 Engine 4 | 1 . 2 1 Core . | . . . . Reactor . | . . . . Propulsion 9 | 2 2 2 3 Treads . | . . . . Leg 1 | . . . 1 Wheel 6 | 2 2 2 . Hover . | . . . . Flight 2 | . . . 2 Utility 5 | 2 . 2 1 Device 3 | 1 . 2 . Storage 1 | 1 . . . Processor . | . . . . Hackware . | . . . . Protection 1 | . . . 1 Artifact . | . . . . Weapon 9 | 2 3 2 2 Energy Gun 5 | 2 1 1 1 Energy Cannon . | . . . . Ballistic Gun 2 | . . 1 1 Ballistic Cannon . | . . . . Launcher . | . . . . Special Weapon 1 | . 1 . . Impact Weapon . | . . . . Slashing Weapon 1 | . 1 . . Piercing Weapon . | . . . . Special Melee Weapon . | . . . . Unidentified Prototypes . | . . . . Parts Lost 17 | . 1 2 14 Power 2 | . . . 2 Propulsion 4 | . . . 4 Utility 5 | . . 1 4 Weapon 6 | . 1 1 4 Highest Loss Streak 14 | . 1 1 14 To Critical Strikes . | . . . . Average Backups 6 | 4 7 7 6 Power . | . 1 1 . Propulsion 1 | 2 2 1 . Utility 3 | . 1 3 4 Weapon 1 | . 1 1 . Tool/Special . | . . . . Unused Backups 12 | 3 4 1 4 Power . | . . . . Propulsion 7 | 3 3 1 . Utility 5 | . 1 . 4 Weapon . | . . . . Tool/Special . | . . . . Average Slot Usage (%) 92 | . 100 97 79 Engine 12 | . 14 14 8 Wheel 24 | . 28 28 16 Device 14 | . 14 11 18 Storage 12 | . 14 14 10 Energy Gun 14 | . 18 11 16 Ballistic Gun 5 | . . 5 8 Special Weapon 3 | . 4 4 . Slashing Weapon 3 | . 4 5 . Peak Build Rating 13 | 7 8 10 13 Average Rating 8 | 5 7 8 9 On Entrance 6 | . 7 8 10 Avg Prop Armor Cover (%) . | . . . . Naked Turns . | . . . . Heaviest Build 17 | 15 15 14 17 Greatest Support 20 | 20 20 20 20 Greatest Overweight (x) 2 | . . . 2 Average Overweight (x) . | . . . . Largest Inventory Capacity 8 | 8 8 8 8 Average Capacity 7 | 7 8 8 7 Most Carried 8 | 8 8 8 8 Average Carried 6 | 4 7 7 6 Final Capacity 8 | 8 8 8 5 Final Carried 8 | 8 8 8 4 Class Distribution -------------------- 42% | Mutant 42% | Scavenger-Mutant 14% | Scavenger-Skirmisher Dominant Class ---------------- Mutant | -10/Materials Scavenger-Mutant | -10/Mines Scavenger-Skirmisher | -9/Materials Resources | -11 -10 -10 -9 ----------- Run | Yrd Mat Min Mat Matter Collected 662 | 270 118 143 131 Remotely . | . . . . Salvage Created 1041 | 114 191 492 244 Parts 51 | 7 14 20 10 Haulers Intercepted . | . . . . Recyclers Shooed 2 | . . 2 . Parts Field Recycled . | . . . . Retrieved Matter . | . . . . Parts Self-Destructed . | . . . . Prevented . | . . . . Parts Restored . | . . . . Kills | -11 -10 -10 -9 ------- Run | Yrd Mat Min Mat Combat Hostiles Destroyed 16 | . 5 5 6 Guns 16 | . 5 5 6 Classes Destroyed 7 | 2 4 . 1 Worker 4 | . 1 3 . Tunneler 4 | 2 1 1 . Recycler 4 | 1 . 3 . Operator 1 | . 1 . . Watcher 1 | . . . 1 Swarmer 8 | . 3 3 2 Grunt 8 | . 2 2 4 Best Kill Streak 7 | 2 7 3 3 Combat Bots Only 3 | . 3 3 3 Max Kills in Single Turn 1 | 1 1 1 1 Gunslinging . | . . . . Exploded . | . . . . Melee . | . . . . Uniques/NPCs Destroyed . | . . . . Combat | -11 -10 -10 -9 -------- Run | Yrd Mat Min Mat Hostile Shots Fired 225 | . 28 28 169 Missed 48 | . 8 4 36 Hits 177 | . 20 24 133 Projectile 177 | . 20 24 133 Critical Strikes 1 | . . . 1 Damage Taken 1796 | . 172 235 1389 Core 489 | . 31 49 409 Absorbed by Shields . | . . . . Regen/Repaired (Parts) 45 | . . . 45 Core Remaining (%) 84 | 100 . 68 . Volleys Fired 79 | 8 14 25 32 Largest 3 | 2 2 2 3 Hottest 123 | 90 100 100 123 Shots Fired 160 | 16 28 46 70 Gun 156 | 16 28 42 70 Cannon . | . . . . Launcher . | . . . . Special 4 | . . 4 . Kinetic 45 | . . 16 29 Thermal 102 | 8 23 30 41 Explosive . | . . . . Electromagnetic 13 | 8 5 . . Robot Hit Streak 15 | 6 7 10 15 Robot Miss Streak 6 | 2 6 4 3 Penetration Max . | . . . . Secondary Targets 3 | . 2 . 1 Max Gunslinging Chain 1 | . 1 . 1 Shots Hit Robots 97 | 11 14 33 39 Core Hits 49 | 4 11 18 16 Critical Kills . | . . . . Critical Parts Destroyed . | . . . . Critical Strikes 6 | . 3 1 2 Burn 6 | . 3 1 2 Melee Attacks 10 | . 2 8 . Impact . | . . . . Slashing 10 | . 2 8 . Piercing . | . . . . Sneak Attacks 4 | . . 4 . Combat Hostiles . | . . . . Follow-up Attacks . | . . . . Damage Inflicted 1441 | 166 221 512 542 Guns 1141 | 126 195 289 531 Cannons . | . . . . Explosions 40 | 40 . . . Melee 249 | . 26 223 . Ramming 11 | . . . 11 Kinetic 290 | . . 75 215 Thermal 786 | 103 153 214 316 Explosive . | . . . . Electromagnetic 105 | 63 42 . . Impact . | . . . . Slashing 249 | . 26 223 . Piercing . | . . . . Highest Corruption 2 | . . . 2 Average Corruption 2 | . . . 2 Corruption Purged . | . . . . Corruption Blocked . | . . . . Overload Shots . | . . . . Overflow Damage 11 | . . 11 . Projectiles . | . . . . Explosions . | . . . . Melee 11 | . . 11 . Knockbacks . | . . . . Impact . | . . . . Kinetic . | . . . . Secondary . | . . . . Self-Inflicted Damage 5 | . . . 5 Shots . | . . . . Rammed 10 | . . . 10 Targets Rammed 10 | . . . 10 Kicked . | . . . . Crushed . | . . . . Highest Temperature 341 | 180 273 195 341 Average Temperature 94 | 75 108 52 125 Received Heat Transfer 525 | . 12 54 459 Siege Activations . | . . . . Martial Activations . | . . . . Shielding Activations . | . . . . Robots Disrupted . | . . . . Combat Hostiles . | . . . . Robots Corrupted . | . . . . Combat Hostiles . | . . . . Parts Fried . | . . . . Impact Corruptions . | . . . . Robots Melted . | . . . . Combat Hostiles . | . . . . Parts Melted 4 | . 3 . 1 Heat Transferred 2627 | 185 666 703 1073 Parts Sabotaged . | . . . . Parts Stolen . | . . . . Parts Stripped . | . . . . Power Chain Reactions 1 | 1 . . . Alert | -11 -10 -10 -9 ------- Run | Yrd Mat Min Mat Maximum Alert Level . | . . . . Low Security (%) 100 | 100 100 100 100 Level 1 . | . . . . Level 2 . | . . . . Level 3 . | . . . . Level 4 . | . . . . Level 5 . | . . . . High Security . | . . . . Max Security . | . . . . Peak Influence 117 | 10 100 70 117 Initial 27 | . . 27 3 Average 31 | 1 49 29 37 Influence Increases 581 | 15 135 174 257 Destroy 0b10 Robot/C 340 | . 100 100 140 Destroy 0b10 Robot/NC 70 | 15 15 35 5 Destroy Leader 82 | . 20 20 42 Allied During Kill 4 | . . . 4 Successful Hack 5 | . . . 5 Destroy Structure 5 | . . 4 1 Lose Combat Pursuer 75 | . . 15 60 Influence Decreases 554 | 15 65 234 240 Entered New Map 50 | . . 43 7 Time Decay 314 | 15 55 171 73 Lost Part 170 | . 10 20 140 Lost Ally 20 | . . . 20 Squads Dispatched 1 | . 1 . . Investigation 1 | . 1 . . Extermination . | . . . . Reinforcement . | . . . . Assault . | . . . . Garrison . | . . . . Intercept . | . . . . Searches Triggered . | . . . . Construction Impeded . | . . . . Haulers Reinforced . | . . . . Active Scanning Responses . | . . . . Cargo Convoy Interrupts . | . . . . Stealth | -11 -10 -10 -9 --------- Run | Yrd Mat Min Mat Distress Signals 2 | . 1 . 1 Communications Jammed . | . . . . Distress Signals . | . . . . Times Spotted 35 | . 7 6 22 Peak Tracking Total 10 | . 3 3 10 Tactical Retreats 3 | . . 1 2 Traps | -11 -10 -10 -9 ------- Run | Yrd Mat Min Mat Traps Triggered 1 | . 1 . . Indirectly . | . . . . Trap Hack Attempts . | . . . . Triggered . | . . . . Disarmed . | . . . . Reprogrammed . | . . . . Reused . | . . . . Traps Extracted . | . . . . Installed . | . . . . Triggered . | . . . . Machines | -11 -10 -10 -9 ---------- Run | Yrd Mat Min Mat Machines Disabled . | . . . . Max in Single Turn . | . . . . Machines Repaired . | . . . . Machines Dismantled . | . . . . Machines Sabotaged . | . . . . Overloaded Fab Kills . | . . . . Hacking | -11 -10 -10 -9 --------- Run | Yrd Mat Min Mat Machines Accessed 3 | . . . 3 Terminals 2 | . . . 2 Fabricators . | . . . . Repair Stations 1 | . . . 1 Recycling Units . | . . . . Scanalyzers . | . . . . Garrison Access . | . . . . Total Hacks 7 | . . . 7 Successful 5 | . . . 5 Failed 2 | . . . 2 Catastrophic . | . . . . Database Lockouts . | . . . . Manual 1 | . . . 1 Terminals 5 | . . . 5 Fabricators . | . . . . Repair Stations 2 | . . . 2 Recycling Units . | . . . . Scanalyzers . | . . . . Garrison Access . | . . . . Terminal Hacks 3 | . . . 3 Record 1 | . . . 1 Hauler Manifests 1 | . . . 1 Zone Layout 1 | . . . 1 Fabricator Hacks . | . . . . Repair Station Hacks 2 | . . . 2 Scan Component 1 | . . . 1 Repair 1 | . . . 1 Recycling Unit Hacks . | . . . . Scanalyzer . | . . . . Garrison Access Hacks . | . . . . Unauthorized Hacks . | . . . . Terminals . | . . . . Fabricators . | . . . . Repair Stations . | . . . . Recycling Units . | . . . . Scanalyzers . | . . . . Garrison Access . | . . . . Data Cores Recovered 1 | . 1 . . Used . | . . . . Hacking Detections 3 | . . . 3 Full Trace Events . | . . . . Feedback Events . | . . . . Feedback Blocked . | . . . . Robot Schematics Acquired . | . . . . Robots Built . | . . . . Authchips . | . . . . Time . | . . . . Total Robot Build Rating . | . . . . Part Schematics Acquired . | . . . . Parts Built . | . . . . Authchips . | . . . . Time . | . . . . Total Part Build Rating . | . . . . Part Studies Acquired . | . . . . Parts Repaired 1 | . . . 1 Time 26 | . . . 26 Parts Recycled . | . . . . Recycled Matter . | . . . . Retrieved Matter . | . . . . Retrieved Components . | . . . . Parts Scanalyzed . | . . . . Part Schematics Acquired . | . . . . Parts Damaged . | . . . . Bothacking | -11 -10 -10 -9 ------------ Run | Yrd Mat Min Mat Used RIF Installer . | . . . . Robots Hacked . | . . . . Non-combat . | . . . . Combat . | . . . . Robot Hacks Applied . | . . . . Relay Couplers Released . | . . . . Fabnet Peak Effective % . | . . . . Robots Rewired . | . . . . Allies Hacked . | . . . . Hacks Repelled . | . . . . Allies | -11 -10 -10 -9 -------- Run | Yrd Mat Min Mat Total Allies 2 | . . 2 . Largest Group 2 | . . 2 1 Highest-Rated Group 42 | . . 42 31 Highest-Rated Ally 31 | . . 31 31 Total Orders . | . . . . Ally Attacks 7 | . . . 7 Total Damage 126 | . . . 126 Kills 1 | . . . 1 Allies Corrupted . | . . . . Allies Melted 1 | . . . 1 Intel | -11 -10 -10 -9 ------- Run | Yrd Mat Min Mat Active Infowar (turns) 684 | 13 134 334 203 Terrain 484 | . . 281 203 Seismic 383 | 13 134 53 183 Robot Analysis Total . | . . . . Derelict Logs Recovered 1 | . . 1 . Drone Launches . | . . . . Drone Recoveries . | . . . . Exploration | -11 -10 -10 -9 ------------- Run | Yrd Mat Min Mat Turns Passed 858 | 95 134 390 239 Spaces Moved 629 | 61 86 338 144 Core 3 | 1 . . 2 Treads . | . . . . Legs 6 | . . . 6 Wheels 600 | 60 86 338 116 Hover . | . . . . Flight 20 | . . . 20 Fastest Speed 37 | 50 80 80 37 Average Speed 79 | 79 80 80 76 Slowest Speed 150 | 80 80 80 150 Overloaded Moves . | . . . . Propulsion Burnouts . | . . . . Robots Hopped 10 | . . . 10 Potential Cave-ins . | . . . . Cave-ins Triggered . | . . . . Exploration Rate (%) 23 | 4 22 54 14 Regions Visited 3 Branch Regions 1 Pre-discovered Areas . | . . . . Known Exits Taken . | . . . . Unknown Exits Taken 3 | 1 1 1 . Scrap Searched 1 | . . 1 . Spaces Dug 2 | . . 2 . Terrain Destroyed 4 | . . 4 . Melee . | . . . . Projectile 4 | . . 4 . AOE . | . . . . Terrain Rammed . | . . . . Walls Destroyed . | . . . . Machines Disabled . | . . . . Actions | -11 -10 -10 -9 --------- Run | Yrd Mat Min Mat Total 798 | 89 119 390 200 Wait 11 | . . 1 10 Move 611 | 60 85 337 129 Hop 5 | . . . 5 Pick Up 22 | 11 7 2 2 Fast Attach 16 | 7 . 4 5 Attach 8 | . 1 1 6 Detach . | . . . . Swap 10 | . 4 5 1 Drop 16 | 3 6 7 . Fire 79 | 8 14 25 32 Melee 10 | . 2 8 . Ram 10 | . . . 10 Kick . | . . . . Crush . | . . . . Escape Stasis . | . . . . Rewire . | . . . . Trap . | . . . . Miscellaneous . | . . . . Route ------- -11/Scrapyard -10/Materials -10/Mines -9/Materials History --------- Turn | Location | Event 10 | -11/Scrapyard | Discovered new exit (range 15) 96 | -11/Scrapyard | Entered Materials 212 | -10/Materials | Discovered new exit (range 11) 230 | -10/Materials | Entered Mines 578 | -10/Mines | Discovered new exit (range 4) 583 | -10/Mines | Learned Materials emergency access door positions 620 | -10/Mines | Entered Materials 620 | -9/Materials | Accompanied by 1 ally 620 | -9/Materials | Evolved 2 slots: Utility x1, Weapon x1 637 | -9/Materials | Led the pair of lost Derelicts to an unsafe place 685 | -9/Materials | Repaired Med. Laser 825 | -9/Materials | Core integrity fell below 50% 847 | -9/Materials | Core integrity fell below 20% 859 | -9/Materials | Destroyed by G-34 Mercenary with Small Laser Last Messages --------------- 00824_ R-06 Scavenger collects Flight Unit. 00824_ Slammed into S-10 Pest. 00824_ Destabilizing: Core damaged (-12). 00826_ Slammed into S-10 Pest. 00826_ Destabilizing: System corrupted (+2). 00827_ Slammed into S-10 Pest. 00831_ K-01 Serf collects debris. 00833_ Acquired Aluminum Leg. 00835_ K-01 Serf collects debris. 00839_ Sml. Storage Unit destroyed. 00842_ S-10 Pest destroyed. 00842_ Acquired Beam Rifle. 00845_ Lgt. Armor Plating destroyed. 00846_ S-10 Pest suffers critical hit (Burn). 00846_ S-10 Pest destroyed. 00846_ K-01 Serf collects debris. 00849_ Aluminum Leg destroyed. 00850_ Acquired Flight Unit. 00858_ Acquired 16 matter. 00859_ K-01 Serf collects debris. Map ----- +----------------------------------------------------+ | ?????????????????????????????????????????????????? | | ?????????????????????????????????????????????????? | | ?????????????????????????????????????????????????? | | ?????????????????????????????????????????????????? | | ?????????????????????????????????????????????????? | | ?????????????????????????????????????????????????? | | ?????????????????????????????????????????????????? | | ?????????????????????????????????????????????????? | | ?????????????????????????????????????????????????? | | ?????????????????????????? ????????????????????? | | ?????????????????????????? #???????????????????? | | ?????????????????????????# #???????????????????? | | ?????????????????????????# #???????????????????? | | ?????????????????????????# #??#????????????????? | | ?????????????????????????# #???????????????????? | | ?????????????????????"???# ###? ???????????????? | | ???????????????#?????????#% a??????????????????? | | ????????????????#????????+ ??????????????????? | | ??????????#???### # ????? | | ??????????????#?# # #######+### ????? | | ??????????????#?# # #???# ####+##????? | | ??????????? ??### # #???# "" # "T????? | | ??????????????#?# # ##### "Y # ????? | | ?????????#################%k + "" # ????? | | ?????????# ####k %##### # """ ????? | | ?????????# g ssg@g% ##??# #""""" ????? | | ?????????# s #####+###### #""""" ????? | | ?????????# ## %=%! ## #""""" ????? | | ?????????# ## %%""" ## # """ ????? | | ?????????##+############ """ ###### ??? | | ?????????????? + """ #############????? | | ??????????????########## # ######????? | | ????????????? #??#?????# / "" # ????? | | ?????????????#####???#?# T" # ######????? | | ??????????????"" #?????# "" #= #????#????? | | ??????????????"" #?????# %%+* #????#????? | | ??????????????"" #?????########## = #????#??"?? | | ?????????????? #?#?#????#?????###+####?#??#????? | | ?????????????? #??#??????????#??# #?#?????#????? | | ?????????????? ##??#?#???????#??# #?###########? | | ?????????????? #??#??#????#????## #?# #? | | ?????????????? #???#?????#????### ### // #? | | ??????????????####??????????????# # // #? | | ??????????????????????#?????????# # / #? | | ????????????????????????????????# " + #? | | ??????????????????????##???#????# # #? | | ???????????????????????#??????#?# # #? | | ???????????????????????########### ## #? | | ??????????????????????## """ # ###+######### | | ???????????????????????# "R" # #?# # | +----------------------------------------------------+ Best States ------------- Heat Dissipation 28 Energy Generation 10 Energy Capacity 250 Matter Stores 300 Matter Capacity 300 Sight Range 16 Terrain Scan Range 16 Terrain Scan Density 10 Armor Coverage 150 Evasion (%) 55 Item Schematics ----------------- None Robot Schematics ------------------ None Fabricated ------------ Nothing Repaired ---------- Med. Laser | 35% | -9/Materials Studied --------- None Alien Tech Used ----------------- None Achievements -------------- For Emergencies Only Challenges ------------ None Game ------ Seed DynamicStormSuit Manual? 0 Play Time 00:26:05 Cumulative 39.1 hours Start 2025.10.29 @ 14:21:50 End 2025.10.29 @ 14:48:35 Sessions 1 Manual Loads 0 Difficulty Rogue Special Mode None Game No. 22 Rogue 22 Adventurer 0 Explorer 0 Win Type - Total 0 Types 0/0/0/0/0/0/0/0/0/0 Lore% 9 Gallery% 24 Achievement% 16 Wizard Run 0 Options --------- Layout 1 ASCII 1 Keyboard 1 Movement Numpad Keybinds 0 Fullscreen 1 Font 24/Smallcaps Map View 50x35 Zoom Use 13% Tactical HUD 1 Map Filters NONE Filters NONE Steam 1 RUN: 63e6b00d-442b-4a4f-bb90-0c05e1dcfc84